[Event "360 One Wealth GP-4 2024"]
[Site "Mumbai"]
[Date "2024.03.15"]
[Round "5.5"]
[White "Mishra Sanjeev"]
[Black "Kapadi Yash"]
[Result "1-0"]
[ECO "C41"]
[WhiteElo "1833"]
[BlackElo "1779"]
[Annotator "NA RC"]
[PlyCount "153"]
[EventDate "2024.03.10"]
[EventCountry "IND"]
[SourceTitle "playchess.com"]
[Source "ChessBase"]
[SourceQuality "1"]
[TimeControl "5400+30"]

1. e4 {[%emt 0:00:03]} d6 {[%emt 0:00:25]} 2. d4 {[%emt 0:00:06]} Nf6 {[%emt 0:00:02]} 3. Nc3 {[%emt 0:00:06]} e5 {[%emt 0:00:07]} 4. Nf3 {[%emt 0:00:12]} Nbd7 {[%emt 0:00:07]} 5. Bc4 {[%emt 0:00:06]} Be7 {[%emt 0:00:05]} 6. O-O {[%emt 0:00:24]} O-O {[%emt 0:00:09]} 7. h3 {[%emt 0:00:31]} c6 {[%emt 0:00:29]} 8. a4 {[%emt 0:00:29]} Nxe4 {[%emt 0:04:56] 8...h6 is a critical line.} 9. Nxe4 {[%emt 0:00:54]} d5 {[%emt 0:03:35]} 10. Bb3 {[%emt 0:03:41] C41: Philidor Defence.} dxe4 {[%emt 0:00:39]} 11. Nxe5 {[%emt 0:00:02]} Nxe5 {[%emt 0:10:33]} 12. dxe5 {[%emt 0:00:21]} Re8 $146 {[%emt 0:15:36]} (12... Be6 $11 {is superior.}) ({Predecessor:} 12... Bf5 13. Qxd8 Raxd8 14. Be3 c5 15. a5 h5 16. Rfd1 Be6 17. Bxe6 fxe6 18. Rxd8 Rxd8 {½-½ Hilverda,A (2370)-Lauer,M (2403) Oberliga Bayern 1819 2018 (1.1)}) 13. Qh5 {[%emt 0:06:49]} Rf8 {[%emt 0:07:07]} 14. Bf4 {[%emt 0:07:40]} Be6 {[%emt 0:01:31]} 15. Rad1 {[%emt 0:02:22]} Qc8 {[%emt 0:01:42]} 16. Bxe6 {[%emt 0:19:26]} Qxe6 {[%emt 0:00:57]} 17. Qe2 {[%emt 0:05:01]} Qf5 {[%emt 0:08:59]} 18. Bg3 {[%emt 0:03:49]} Rad8 {[%emt 0:06:32]} 19. Qe3 {[%emt 0:00:43]} b6 {[%emt 0:00:28]} 20. Rfe1 {[%emt 0:01:07]} Rxd1 {[%emt 0:00:33]} 21. Rxd1 {[%emt 0:00:02]} h5 {[%emt 0:07:41]} 22. Re1 {[%emt 0:09:53]} h4 {[%emt 0:05:05]} 23. Qf4 {[%emt 0:01:59]} Qxf4 {[%emt 0:00:24]} 24. Bxf4 {[%emt 0:00:01]} g5 {[%emt 0:00:01]} 25. Bd2 $1 {[%emt 0:00:42]} Rd8 {[%emt 0:05:17]} 26. Bc3 {[%emt 0:00:14]} Kg7 {[%emt 0:05:40]} 27. Kf1 {[%emt 0:06:19]} ({Viel schwächer ist} 27. Rxe4 $6 Re8 28. Rd4 Rd8 $16) 27... f5 {[%emt 0:07:00]} 28. exf6+ {[%emt 0:00:12]} Bxf6 {[%emt 0:00:02]} 29. Bxf6+ {[%emt 0:00:11]} Kxf6 {[%emt 0:00:01]} 30. Rxe4 {[%emt 0:00:02]} Rd2 {[%emt 0:00:30]} 31. Rc4 {[%emt 0:00:08]} c5 {[%emt 0:01:07]} 32. Ke1 {[%emt 0:00:13]} Rd5 {[%emt 0:00:44]} 33. Re4 {[%emt 0:00:54]} Rd6 {[%emt 0:01:59]} 34. Ke2 {[%emt 0:00:23]} Rd5 {[%emt 0:00:01]} 35. b3 {[%emt 0:03:12]} Rd6 {[%emt 0:00:06]} 36. Rc4 {[%emt 0:01:37]} Rd5 {[%emt 0:00:26]} (36... Kf5 $16 37. Rc3 Re6+ 38. Re3 Rc6 39. Rf3+ Ke5 40. Re3+ Kf5) 37. f4 {[%emt 0:00:44]} Kg6 {[%emt 0:02:22]} 38. fxg5 {[%emt 0:00:33]} Re5+ {[%emt 0:02:38]} 39. Kf3 {[%emt 0:00:15]} Kxg5 {[%emt 0:00:52]} 40. Rg4+ {[%emt 0:00:30]} Kh5 {[%emt 0:01:49]} 41. Rg7 {[%emt 0:00:37]} Rf5+ {[%emt 0:00:50]} 42. Ke2 {[%emt 0:00:06]} Re5+ {[%emt 0:02:11]} 43. Kd3 {[%emt 0:02:15]} Rd5+ {[%emt 0:02:26]} 44. Kc3 {[%emt 0:02:45]} a6 {[%emt 0:01:44]} 45. g3 {[%emt 0:00:53]} hxg3 46. Rxg3 {[%emt 0:00:02]} b5 {[%emt 0:00:00]} 47. Rg4 {[%emt 0:00:24]} Rf5 {[%emt 0:00:00]} 48. axb5 {[%emt 0:00:55]} axb5 {[%emt 0:00:00]} 49. Rg3 {[%emt 0:00:55]} Kh4 {[%emt 0:00:00]} 50. Re3 {[%emt 0:00:10]} Kg5 {[%emt 0:00:00]} 51. b4 {[%emt 0:00:22]} Kf4 {[%emt 0:00:00]} 52. Rd3 {[%emt 0:00:51]} c4 {[%emt 0:00:00]} 53. Rd4+ {[%emt 0:00:07]} Ke5 {[%emt 0:00:00]} 54. Rh4 {[%emt 0:01:42]} Rf3+ {[%emt 0:00:00]} 55. Kb2 {[%emt 0:00:07]} Kd5 {[%emt 0:00:00]} 56. Rh5+ {[%emt 0:00:12]} Kc6 {[%emt 0:00:00]} 57. h4 {[%emt 0:00:13]} Rh3 {[%emt 0:00:00]} 58. Rc5+ {[%emt 0:00:47]} Kb6 {[%emt 0:00:00]} 59. h5 {[%emt 0:00:01]} Rg3 {[%emt 0:00:10]} 60. Rf5 {[%emt 0:00:10]} Rh3 {[%emt 0:00:02]} 61. Rf6+ {[%emt 0:00:09]} Kc7 {[%emt 0:00:13]} 62. h6 {[%emt 0:00:21]} Kb7 {[%emt 0:00:35]} 63. Rg6 {[%emt 0:02:26]} Ka7 {[%emt 0:00:24]} 64. Rg7+ {[%emt 0:00:17]} Kb6 {[%emt 0:00:13]} 65. h7 {[%emt 0:00:14]} Kc6 {[%emt 0:00:26]} 66. Rf7 {[%emt 0:02:51]} Kb6 {[%emt 0:01:04]} 67. Kc1 {[%emt 0:01:17]} Rh2 $1 $11 {[%emt 0:00:01]} 68. Kd1 {[%emt 0:00:45]} Kc6 {[%emt 0:00:08]} 69. Kc1 {[%emt 0:05:09]} Kd5 $2 {[%emt 0:01:05]} 70. Rc7 $2 {[%emt 0:00:49]} (70. Kb2 $18 {is the precise move to win.}) 70... Kd4 {[%emt 0:03:13]} 71. Kb2 {[%emt 0:00:15]} Rh3 {[%emt 0:01:06]} 72. Rb7 {[%emt 0:00:27]} Rh2 {[%emt 0:00:15]} 73. Rxb5 {[%emt 0:01:21]} Rxh7 {[%emt 0:00:01]} 74. Rb8 {[%emt 0:01:07]} Rh3 {[%emt 0:00:51]} 75. Rd8+ {[%emt 0:00:50]} Ke5 {[%emt 0:00:24]} 76. b5 {[%emt 0:00:09]} Rh6 {[%emt 0:01:07]} 77. Kc3 $18 {[%emt 0:00:09]} 1-0

[Event "360 One Wealth GP-4 2024"]
[Site "Mumbai"]
[Date "2024.03.15"]
[Round "5.6"]
[White "Reyaansh Venkat"]
[Black "Ram Vishal Parab"]
[Result "0-1"]
[ECO "C50"]
[WhiteElo "1546"]
[BlackElo "1807"]
[Annotator "NA RC"]
[PlyCount "110"]
[EventDate "2024.03.10"]
[EventCountry "IND"]
[SourceTitle "playchess.com"]
[Source "ChessBase"]
[SourceQuality "1"]
[TimeControl "5400+30"]

1. e4 {[%emt 0:00:05]} e5 {[%emt 0:06:20]} 2. Nf3 {[%emt 0:00:14]} Nc6 {[%emt 0:00:05]} 3. Bc4 {[%emt 0:00:17]} Bc5 {[%emt 0:00:04]} 4. O-O {[%emt 0:00:24]} Nf6 {[%emt 0:00:05]} 5. d3 {[%emt 0:00:40]} d6 {[%emt 0:00:06]} 6. h3 {[%emt 0:01:24]} a6 {[%emt 0:00:03] C50: Hungarian Defence and Giuoco Pianissimo.} 7. c3 {[%emt 0:00:30]} Ba7 {[%emt 0:00:04]} 8. Re1 {[%emt 0:02:45]} h6 {[%emt 0:00:27]} 9. a4 {[%emt 0:03:05]} g5 {[%emt 0:00:41]} 10. d4 {[%emt 0:10:53]} g4 {[%emt 0:01:34]} 11. hxg4 {[%emt 0:14:52]} Bxg4 {[%emt 0:03:58]} 12. Be3 {[%emt 0:11:44]} Kf8 {[%emt 0:12:08]} 13. Nbd2 {[%emt 0:14:00]} exd4 {[%emt 0:07:45]} 14. cxd4 {[%emt 0:01:05]} Bxd4 {[%emt 0:00:48]} 15. Qc2 {[%emt 0:04:19]} Bxe3 {[%emt 0:05:16]} 16. Rxe3 {[%emt 0:01:20]} Rg8 {[%emt 0:06:26]} 17. Bf1 {[%emt 0:03:35]} Be6 {[%emt 0:04:45]} 18. Nc4 {[%emt 0:05:35]} Ng4 {[%emt 0:01:35]} 19. Ree1 {[%emt 0:02:11]} Qf6 {[%emt 0:01:22]} 20. Qc3 {[%emt 0:02:57]} Qg6 {[%emt 0:02:26]} 21. g3 {[%emt 0:01:09]} Nxf2 {[%emt 0:02:57]} 22. Nh4 {[%emt 0:02:29]} Nh3+ {[%emt 0:00:08]} 23. Bxh3 {[%emt 0:00:54]} Qxg3+ {[%emt 0:00:06]} 24. Qxg3 {[%emt 0:00:15]} Rxg3+ {[%emt 0:00:02]} 25. Bg2 {[%emt 0:00:16]} Bxc4 {[%emt 0:00:09]} 26. Nf5 {[%emt 0:01:12]} Rg6 {[%emt 0:00:05]} 27. Rac1 {[%emt 0:00:24]} Ne5 {[%emt 0:00:06]} 28. Re3 {[%emt 0:01:40]} c6 {[%emt 0:05:11]} 29. b3 {[%emt 0:01:01]} Be6 {[%emt 0:00:02]} 30. Rd1 {[%emt 0:01:44]} d5 {[%emt 0:00:44]} 31. Nd4 $19 {[%emt 0:01:40]} Bg4 {[%emt 0:00:40]} 32. Rf1 {[%emt 0:00:38]} dxe4 {[%emt 0:01:14]} 33. Rxe4 {[%emt 0:00:34]} Re8 {[%emt 0:00:20]} 34. Rfe1 {[%emt 0:00:43]} Nf3+ {[%emt 0:00:32]} 35. Nxf3 {[%emt 0:01:07]} Rxe4 {[%emt 0:00:03]} 36. Rxe4 {[%emt 0:00:03]} Bxf3 {[%emt 0:00:06]} 37. Re3 {[%emt 0:00:23]} Rxg2+ {[%emt 0:00:07]} 38. Kf1 {[%emt 0:00:13]} Bd5 {[%emt 0:00:04]} 39. Rh3 {[%emt 0:00:13]} Rb2 {[%emt 0:00:03]} 40. Rxh6 {[%emt 0:00:09]} Bxb3 {[%emt 0:00:05]} 41. Rh8+ {[%emt 0:00:18]} Ke7 {[%emt 0:00:01]} 42. Rb8 {[%emt 0:00:03]} Bxa4 {[%emt 0:00:09]} 43. Ke1 {[%emt 0:00:16]} c5 {[%emt 0:00:03]} 44. Rc8 {[%emt 0:00:03]} Bc6 {[%emt 0:00:04]} 45. Rc7+ {[%emt 0:00:10]} Kf6 {[%emt 0:00:06]} 46. Kd1 {[%emt 0:00:08]} c4 {[%emt 0:00:02]} 47. Kc1 {[%emt 0:00:13]} c3 {[%emt 0:00:03]} 48. Rc8 {[%emt 0:00:10]} a5 {[%emt 0:00:07]} 49. Ra8 {[%emt 0:00:17]} a4 {[%emt 0:00:10]} 50. Ra7 {[%emt 0:00:13]} Rh2 {[%emt 0:00:09]} 51. Ra5 {[%emt 0:00:08]} Be4 {[%emt 0:00:04]} 52. Kd1 {[%emt 0:00:25]} c2+ {[%emt 0:00:04]} 53. Kc1 {[%emt 0:00:08]} Rh1+ {[%emt 0:00:04]} 54. Kb2 {[%emt 0:00:26]} c1=Q+ {[%emt 0:00:06]} 55. Ka2 {[%emt 0:00:21]} Qa1# {[%emt 0:00:04]} 0-1

[Event "360 One Wealth GP-4 2024"]
[Site "Mumbai"]
[Date "2024.03.15"]
[Round "5.7"]
[White "Soni Atharv"]
[Black "Agraval, Shravana"]
[Result "1-0"]
[ECO "B76"]
[WhiteElo "1684"]
[BlackElo "1540"]
[Annotator "NA RC"]
[PlyCount "87"]
[EventDate "2024.03.10"]
[EventCountry "IND"]
[SourceTitle "playchess.com"]
[Source "ChessBase"]
[SourceQuality "1"]
[TimeControl "5400+30"]

1. e4 {[%emt 0:00:08]} c5 {[%emt 0:00:19]} 2. Nf3 {[%emt 0:00:06]} d6 {[%emt 0:00:04]} 3. d4 {[%emt 0:00:12]} cxd4 {[%emt 0:00:04]} 4. Nxd4 {[%emt 0:00:05]} Nf6 {[%emt 0:00:07]} 5. Nc3 {[%emt 0:00:05]} g6 {[%emt 0:00:03]} 6. f3 {[%emt 0:00:18]} Bg7 {[%emt 0:00:06]} 7. Be3 {[%emt 0:00:05]} Nc6 {[%emt 0:00:09]} 8. Qd2 {[%emt 0:00:04]} O-O {[%emt 0:00:24]} 9. O-O-O {[%emt 0:00:14]} d5 {[%emt 0:00:22]} 10. exd5 {[%emt 0:00:05]} Nxd5 {[%emt 0:00:05]} 11. Nxc6 {[%emt 0:00:06]} bxc6 {[%emt 0:00:05]} 12. Bd4 {[%emt 0:00:09]} Bb7 {[%emt 0:13:31]} 13. Bxg7 {[%emt 0:04:36]} Kxg7 {[%emt 0:00:08]} 14. h4 {[%emt 0:01:49]} h5 {[%emt 0:12:17]} 15. g4 {[%emt 0:07:09]} Rh8 {[%emt 0:04:03]} 16. Bc4 {[%emt 0:04:59]} e6 {[%emt 0:01:29]} 17. Ne4 {[%emt 0:05:44]} Qe7 {[%emt 0:04:41]} 18. g5 {[%emt 0:25:04]} Rhd8 {[%emt 0:02:12]} 19. f4 {[%emt 0:10:57]} e5 {[%emt 0:03:38]} 20. fxe5 {[%emt 0:07:25]} Qxe5 {[%emt 0:01:04]} 21. Bxd5 {[%emt 0:04:33]} Rxd5 {[%emt 0:02:06]} 22. Qc3 {[%emt 0:00:13]} Qxc3 {[%emt 0:02:27]} 23. Nxc3 {[%emt 0:00:04]} Rdd8 {[%emt 0:00:09]} 24. Rhe1 {[%emt 0:00:40]} Rxd1+ {[%emt 0:03:31]} 25. Rxd1 {[%emt 0:00:38]} a5 {[%emt 0:02:29]} 26. Ne4 {[%emt 0:00:31]} Bc8 {[%emt 0:01:34]} 27. Rd8 {[%emt 0:00:30]} Bb7 {[%emt 0:00:35]} 28. Rd7 {[%emt 0:08:26]} Bc8 {[%emt 0:00:09]} 29. Rd8 {[%emt 0:00:42]} Bb7 {[%emt 0:00:06]} 30. Rxa8 {[%emt 0:00:11]} Bxa8 {[%emt 0:00:06]} 31. Kd2 {[%emt 0:00:08]} Bb7 {[%emt 0:00:12]} 32. Kc3 {[%emt 0:00:07]} Kf8 {[%emt 0:00:10]} 33. Kd4 {[%emt 0:00:09]} Ke7 {[%emt 0:00:10]} 34. Kc5 {[%emt 0:00:32]} Ke6 {[%emt 0:00:18]} 35. Kb6 {[%emt 0:00:38]} Bc8 {[%emt 0:00:06]} 36. Kxc6 {[%emt 0:00:57]} Ke5 {[%emt 0:00:22]} 37. Nd6 {[%emt 0:05:32]} Be6 {[%emt 0:00:05]} 38. Nb7 {[%emt 0:00:38]} Kf4 {[%emt 0:01:25]} 39. Nxa5 {[%emt 0:00:08]} Kg4 {[%emt 0:00:05]} 40. b4 {[%emt 0:00:07]} Kxh4 {[%emt 0:00:10]} 41. b5 {[%emt 0:00:10]} Kxg5 {[%emt 0:00:25]} 42. b6 {[%emt 0:00:08]} Bg4 {[%emt 0:00:03]} 43. Kc7 {[%emt 0:00:07]} Bf3 {[%emt 0:00:43]} 44. Nc6 {[%emt 0:00:01]} 1-0

[Event "360 One Wealth GP-4 2024"]
[Site "Mumbai"]
[Date "2024.03.15"]
[Round "5.8"]
[White "Muthe Dhruv"]
[Black "Soni Deepak R"]
[Result "1-0"]
[ECO "B10"]
[WhiteElo "1539"]
[BlackElo "1681"]
[Annotator "NA RC"]
[PlyCount "95"]
[EventDate "2024.03.10"]
[EventCountry "IND"]
[SourceTitle "playchess.com"]
[Source "ChessBase"]
[SourceQuality "1"]
[TimeControl "5400+30"]

1. e4 {[%emt 0:00:00]} c6 {[%emt 0:10:03]} 2. d3 {[%emt 0:00:06]} d5 {[%emt 0:00:27]} 3. Nd2 {[%emt 0:00:12]} e5 {[%emt 0:02:04]} 4. Ngf3 {[%emt 0:00:10]} Bd6 {[%emt 0:02:56]} 5. d4 {[%emt 0:00:08]} Qe7 {[%emt 0:07:28]} 6. Bd3 {[%emt 0:01:26]} Bg4 {[%emt 0:11:55]} 7. O-O {[%emt 0:01:38]} Qc7 {[%emt 0:05:57]} 8. exd5 {[%emt 0:13:33]} exd4 {[%emt 0:01:02]} 9. Qe1+ {[%emt 0:00:34]} Ne7 {[%emt 0:01:19]} 10. dxc6 {[%emt 0:05:05]} Nbxc6 {[%emt 0:01:13]} 11. h3 {[%emt 0:02:16]} Bh5 {[%emt 0:01:29]} 12. Be2 {[%emt 0:15:08]} Bg6 {[%emt 0:01:20]} 13. Qd1 {[%emt 0:02:25]} O-O {[%emt 0:01:59]} 14. Nb3 {[%emt 0:00:45]} Rfd8 {[%emt 0:01:41]} 15. Nbxd4 {[%emt 0:02:18]} Nxd4 {[%emt 0:00:08]} 16. Nxd4 {[%emt 0:00:30]} Qb6 {[%emt 0:07:42]} 17. c3 {[%emt 0:05:02]} Bc5 {[%emt 0:00:20]} 18. Qb3 {[%emt 0:02:28]} Bxd4 {[%emt 0:03:43]} 19. cxd4 {[%emt 0:00:09]} Qxb3 {[%emt 0:04:44]} 20. axb3 {[%emt 0:00:39]} Rxd4 {[%emt 0:09:07]} 21. Be3 {[%emt 0:00:16]} Rdd8 {[%emt 0:10:26]} 22. Bxa7 {[%emt 0:04:15]} h6 {[%emt 0:03:56]} 23. Bf3 {[%emt 0:00:35]} Bd3 {[%emt 0:03:45]} 24. Rfd1 {[%emt 0:01:58]} Nc6 {[%emt 0:01:33]} 25. Bb6 {[%emt 0:02:26]} Rxa1 {[%emt 0:00:51]} 26. Rxa1 {[%emt 0:00:17]} Re8 {[%emt 0:00:27]} 27. Rc1 {[%emt 0:01:49]} Re6 {[%emt 0:01:00]} 28. Be3 {[%emt 0:02:00]} Be4 {[%emt 0:01:11]} 29. Be2 {[%emt 0:02:02]} Re5 {[%emt 0:01:16]} 30. Rc4 {[%emt 0:08:22]} Bd5 {[%emt 0:01:19]} 31. Rc3 {[%emt 0:01:40]} Be4 {[%emt 0:00:28]} 32. f3 {[%emt 0:01:11]} Bf5 {[%emt 0:00:52]} 33. Kf2 {[%emt 0:00:18]} Be6 {[%emt 0:01:08]} 34. Bc5 {[%emt 0:01:26]} Bxb3 {[%emt 0:01:06]} 35. Rxb3 {[%emt 0:02:54]} Rxc5 {[%emt 0:00:01]} 36. Rxb7 {[%emt 0:00:27]} Rc2 {[%emt 0:00:38]} 37. Ke3 {[%emt 0:00:10]} g6 {[%emt 0:00:30]} 38. b4 {[%emt 0:00:30]} Rc3+ {[%emt 0:01:35]} 39. Kd2 {[%emt 0:00:32]} Rb3 {[%emt 0:00:01]} 40. b5 {[%emt 0:01:17]} Rb2+ {[%emt 0:00:22]} 41. Kc3 {[%emt 0:01:37]} Rxe2 {[%emt 0:00:57]} 42. bxc6 {[%emt 0:00:19]} Re6 {[%emt 0:00:28]} 43. c7 {[%emt 0:00:19]} Rc6+ {[%emt 0:00:06]} 44. Kb4 {[%emt 0:00:03]} Kg7 {[%emt 0:00:14]} 45. Kb5 {[%emt 0:00:37]} Rc2 {[%emt 0:00:30]} 46. Kb6 {[%emt 0:00:30]} Kf6 {[%emt 0:00:30]} 47. Ka7 {[%emt 0:00:30]} Ke6 {[%emt 0:00:30]} 48. Kb8 {[%emt 0:00:30]} 1-0

[Event "360 One Wealth GP-4 2024"]
[Site "Mumbai"]
[Date "2024.03.15"]
[Round "5.9"]
[White "Butala Krish"]
[Black "Pasbola Samvid"]
[Result "0-1"]
[ECO "B90"]
[WhiteElo "1659"]
[BlackElo "1538"]
[Annotator "NA RC"]
[PlyCount "98"]
[EventDate "2024.03.10"]
[EventCountry "IND"]
[SourceTitle "playchess.com"]
[Source "ChessBase"]
[SourceQuality "1"]
[TimeControl "5400+30"]

1. e4 {[%emt 0:00:03]} c5 {[%emt 0:05:02]} 2. Nf3 {[%emt 0:00:25]} d6 {[%emt 0:00:19]} 3. d4 {[%emt 0:00:13]} cxd4 {[%emt 0:00:21]} 4. Nxd4 {[%emt 0:00:26]} Nf6 {[%emt 0:00:30]} 5. Nc3 {[%emt 0:00:35]} a6 {[%emt 0:00:05]} 6. Be3 {[%emt 0:00:35]} e5 {[%emt 0:00:19]} 7. Nb3 {[%emt 0:00:18]} Be6 {[%emt 0:00:29]} 8. f3 {[%emt 0:00:06]} Be7 {[%emt 0:00:32]} 9. Qd2 {[%emt 0:00:54]} Nc6 {[%emt 0:02:07]} 10. Nd5 {[%emt 0:00:59]} Bxd5 {[%emt 0:00:31]} 11. exd5 {[%emt 0:00:11]} Nb8 {[%emt 0:00:06]} 12. c4 {[%emt 0:01:13]} Nbd7 {[%emt 0:02:52]} 13. Na5 {[%emt 0:03:34]} Qc7 {[%emt 0:02:05]} 14. Bd3 {[%emt 0:03:01]} h5 {[%emt 0:03:30]} 15. b4 {[%emt 0:03:01]} g6 {[%emt 0:06:08]} 16. O-O {[%emt 0:04:16]} Rg8 {[%emt 0:06:59]} 17. Rfc1 {[%emt 0:05:33]} g5 {[%emt 0:04:58]} 18. Bxg5 {[%emt 0:02:04]} Ne4 {[%emt 0:01:34]} 19. fxe4 {[%emt 0:04:20]} Bxg5 {[%emt 0:00:16]} 20. Qf2 {[%emt 0:00:02]} Bxc1 {[%emt 0:00:39]} 21. Rxc1 {[%emt 0:00:02]} Nf8 {[%emt 0:07:57]} 22. Qe3 {[%emt 0:07:35]} Ng6 {[%emt 0:04:04]} 23. Qg5 {[%emt 0:01:28]} Qb6+ {[%emt 0:02:50]} 24. c5 {[%emt 0:04:57]} Qxb4 {[%emt 0:07:16]} 25. Nc4 {[%emt 0:03:32]} Qxc5+ {[%emt 0:02:14]} 26. Kh1 {[%emt 0:00:01]} b5 {[%emt 0:12:42]} 27. Nxe5 {[%emt 0:01:32]} Qd4 {[%emt 0:04:44]} 28. Nxf7 {[%emt 0:01:04]} Kxf7 {[%emt 0:00:30]} 29. Qf5+ {[%emt 0:03:12]} Kg7 {[%emt 0:05:24]} 30. e5 {[%emt 0:00:45]} Kh6 {[%emt 0:09:41]} 31. Be2 {[%emt 0:01:22]} Qxe5 {[%emt 0:01:12]} 32. Qd3 {[%emt 0:01:22]} Rae8 {[%emt 0:03:15]} 33. Bf1 {[%emt 0:00:24]} Qe3 {[%emt 0:02:03]} 34. Qb1 {[%emt 0:00:22]} Nf4 {[%emt 0:01:28]} 35. Rc7 {[%emt 0:01:47]} Qe4 {[%emt 0:00:28]} 36. Qb2 {[%emt 0:00:18]} Qxg2+ {[%emt 0:01:05]} 37. Qxg2 {[%emt 0:00:29]} Nxg2 {[%emt 0:00:07]} 38. Rc6 {[%emt 0:00:13]} Re1 {[%emt 0:01:23]} 39. Rxd6+ {[%emt 0:00:02]} Kh7 {[%emt 0:00:10]} 40. Rd7+ {[%emt 0:00:06]} Kh8 {[%emt 0:00:10]} 41. Kg1 {[%emt 0:00:03]} Ne3+ {[%emt 0:00:40]} 42. Kf2 {[%emt 0:00:03]} Rxf1+ {[%emt 0:00:06]} 43. Kxe3 {[%emt 0:00:02]} Ra1 {[%emt 0:00:30]} 44. Ke4 {[%emt 0:00:15]} Rxa2 {[%emt 0:00:16]} 45. Ke5 {[%emt 0:00:05]} Rxh2 {[%emt 0:00:44]} 46. d6 {[%emt 0:00:15]} Re2+ {[%emt 0:00:21]} 47. Kf6 {[%emt 0:00:04]} Rc2 {[%emt 0:02:15]} 48. Re7 {[%emt 0:00:07]} Rcc8 {[%emt 0:00:35]} 49. Re5 {[%emt 0:00:21]} Rcf8+ {[%emt 0:00:17]} 0-1

[Event "360 One Wealth GP-4 2024"]
[Site "Mumbai"]
[Date "2024.03.15"]
[Round "5.10"]
[White "Nirvaan Nirav Shah"]
[Black "Vihaan Ravi Rao"]
[Result "0-1"]
[ECO "B22"]
[WhiteElo "1625"]
[BlackElo "1532"]
[Annotator "NA RC"]
[PlyCount "84"]
[EventDate "2024.03.10"]
[EventCountry "IND"]
[SourceTitle "playchess.com"]
[Source "ChessBase"]
[SourceQuality "1"]
[TimeControl "5400+30"]

1. e4 {[%emt 0:00:29]} c5 {[%emt 0:00:20]} 2. c3 {[%emt 0:01:50]} d6 {[%emt 0:00:20]} 3. d4 {[%emt 0:00:07]} cxd4 {[%emt 0:00:07]} 4. cxd4 {[%emt 0:00:08]} Nf6 {[%emt 0:00:35]} 5. Nc3 {[%emt 0:00:07]} a6 {[%emt 0:00:20]} 6. a4 {[%emt 0:01:55]} b6 {[%emt 0:00:41]} 7. Nf3 {[%emt 0:03:23]} Bb7 {[%emt 0:02:26]} 8. Bd3 {[%emt 0:04:38]} e6 {[%emt 0:02:04]} 9. O-O {[%emt 0:01:42]} Be7 {[%emt 0:01:46]} 10. h3 {[%emt 0:01:10]} Nbd7 {[%emt 0:02:11]} 11. Be3 {[%emt 0:02:47]} O-O {[%emt 0:01:58]} 12. Nd2 {[%emt 0:07:29]} Rc8 {[%emt 0:05:42]} 13. f4 {[%emt 0:03:35]} e5 {[%emt 0:06:05]} 14. fxe5 {[%emt 0:05:08]} dxe5 {[%emt 0:00:11]} 15. d5 {[%emt 0:00:10]} Bc5 {[%emt 0:01:44]} 16. Bxc5 {[%emt 0:02:29]} Nxc5 {[%emt 0:01:36]} 17. Qe2 {[%emt 0:03:17]} Nxd3 {[%emt 0:09:30]} 18. Qxd3 {[%emt 0:00:12]} Nh5 {[%emt 0:09:08]} 19. Qe3 {[%emt 0:14:28]} Nf4 {[%emt 0:03:57]} 20. Nf3 {[%emt 0:01:31]} f6 {[%emt 0:05:10]} 21. Rac1 {[%emt 0:05:12]} Rf7 {[%emt 0:04:02]} 22. Kh2 {[%emt 0:04:13]} Qd6 {[%emt 0:05:56]} 23. g3 {[%emt 0:03:24]} Ng6 {[%emt 0:00:48]} 24. Rfd1 {[%emt 0:05:38]} Rc5 {[%emt 0:06:16]} 25. Nd2 {[%emt 0:02:20]} Bc8 {[%emt 0:03:46]} 26. b3 {[%emt 0:03:58]} Qd7 {[%emt 0:02:36]} 27. g4 {[%emt 0:00:21]} Nf4 {[%emt 0:10:40]} 28. Nc4 {[%emt 0:00:41]} Rxc4 {[%emt 0:02:11]} 29. bxc4 {[%emt 0:00:12]} h5 {[%emt 0:00:23]} 30. Rg1 {[%emt 0:04:40]} hxg4 {[%emt 0:00:47]} 31. hxg4 {[%emt 0:01:57]} g5 {[%emt 0:01:18]} 32. Rg3 {[%emt 0:00:19]} Rh7+ {[%emt 0:00:42]} 33. Kg1 {[%emt 0:00:07]} Rh4 {[%emt 0:00:30]} 34. Qf3 {[%emt 0:05:52]} Qh7 {[%emt 0:02:48]} 35. Nd1 {[%emt 0:09:48]} Nh3+ {[%emt 0:06:18]} 36. Kf1 {[%emt 0:00:36]} Qe7 {[%emt 0:01:14]} 37. Ne3 {[%emt 0:01:22]} Nf4 {[%emt 0:01:07]} 38. Nf5 {[%emt 0:00:51]} Bxf5 {[%emt 0:00:05]} 39. gxf5 {[%emt 0:00:08]} Qc5 {[%emt 0:01:15]} 40. Rg4 {[%emt 0:00:52]} Rh3 {[%emt 0:00:54]} 41. Rg3 {[%emt 0:00:26]} Rh2 {[%emt 0:00:41]} 42. Rg1 {[%emt 0:00:50]} Nd3 {[%emt 0:00:32]} 0-1